bitfinex-derivatives/quotes_SOLF0:USTF0_20260202
["timestamp","ask_amount","ask_price","bid_price","bid_amount"]
[1770011496412,14.09867801,98.425,98.344,142.5203]
[1770011497009,14.11225826,98.455,98.367,142.4864]
[1770011497313,14.11225826,98.455,98.293,404.94]
[1770011497314,14.11225826,98.421,98.324,142.5492]
[1770011497512,14.11225826,98.421,98.335,142.5341]
[1770011497815,142.3907,98.435,98.329,142.5419]
[1770011498017,14.11146157,98.434,98.339,142.5278]
[1770011498209,142.4528,98.392,98.289,142.6]
[1770011498511,14.12632721,98.399,98.312,142.5665]
[1770011498709,14.12632721,98.399,98.324,142.5491]
[1770011498917,156.52062721,98.432,98.335,142.5335]
[1770011499110,142.3981,98.429,98.335,142.5335]
[1770011499308,14.12632721,98.414,98.315,142.5631]
[1770011499511,14.12632721,98.409,98.315,142.5631]
[1770011499907,156.57762721,98.393,98.289,142.6]
[1770011500214,14.12632721,98.386,98.31,142.57]
[1770011500415,14.12632721,98.386,98.322,142.5524]
[1770011500615,21.29533039,98.41,98.322,142.5524]
[1770011500816,14.13628309,98.408,98.313,142.5648]
[1770011501213,14.13628309,98.402,98.304,142.579]
[1770011501408,14.13628309,98.398,98.203,30.63]
[1770011501614,14.13628309,98.398,98.172,67.05]
[1770011501615,14.13628309,98.398,98.314,142.5632]
[1770011501815,14.13628309,98.398,98.324,142.5489]
[1770011502009,14.13628309,98.398,98.306,142.576]
[1770011502318,14.1462298,98.428,98.339,142.5276]
[1770011502622,14.1462298,98.428,98.351,142.5106]
[1770011502811,14.1462298,98.428,98.341,142.5248]
[1770011503718,142.3822,98.44,98.321,142.5543]
[1770011503719,14.1462298,98.415,98.321,142.5543]
[1770011503913,156.5713298,98.411,98.31,142.5697]
[1770011504213,14.1462298,98.411,98.347,142.5156]
[1770011504416,21.29533039,98.43,98.347,142.5156]
[1770011504713,14.14830878,98.393,98.301,142.5833]
[1770011504913,21.29533039,98.4,98.293,142.5943]
[1770011504914,142.4593,98.387,98.293,142.5943]
[1770011505219,14.14830878,98.383,98.286,142.6047]
[1770011505419,14.14830878,98.383,98.307,142.5744]
[1770011505613,14.14830878,98.383,98.297,142.5891]
[1770011505919,14.14830878,98.382,98.29,142.5989]
[1770011506319,173.0982,98.381,98.279,142.6141]
[1770011507112,14.15416499,98.38,98.279,151.7821]
[1770011507324,142.4862,98.369,98.267,142.6326]
[1770011507619,142.4944,98.363,98.267,151.8013]
[1770011507818,14.15416499,98.348,98.254,142.6508]
[1770011508417,14.15416499,98.348,98.266,142.634]
[1770011508617,14.15416499,98.348,98.2,21.29533039]
[1770011508618,14.14530384,98.333,98.213,142.7102]
[1770011508813,14.14530384,98.314,98.234,142.6793]
[1770011509019,14.14530384,98.344,98.261,142.6401]
[1770011509219,14.14530384,98.344,98.247,142.6613]
[1770011509424,14.14530384,98.344,98.261,142.641]
[1770011509623,14.14530384,98.344,98.258,9.17]
[1770011509919,14.14530384,98.321,98.221,142.6989]
[1770011510222,14.13295973,98.314,98.234,142.6796]
[1770011510422,14.13295973,98.314,98.216,142.7059]
[1770011510423,14.13295973,98.342,98.248,151.8307]
[1770011510624,142.5311,98.338,98.248,9.171]
[1770011510819,142.5256,98.341,98.229,142.6877]
[1770011510820,14.13295973,98.323,98.229,142.6877]
[1770011511016,14.13295973,98.299,98.181,142.757]
[1770011511221,142.5878,98.298,98.199,142.7307]
[1770011511417,14.13295973,98.297,98.208,142.718]
[1770011511724,14.13295973,98.326,98.247,142.661]
[1770011511921,14.13295973,98.355,98.276,142.6195]
[1770011512124,14.13295973,98.355,98.266,142.6338]
[1770011512419,14.1294179,98.326,98.22,142.701]
[1770011512620,142.5096,98.352,98.261,142.6409]
[1770011512824,14.1294179,98.358,98.264,142.6364]
[1770011513020,14.1294179,98.358,98.268,142.6303]
[1770011513514,14.1294179,98.358,98.289,142.6001]
[1770011513716,14.1294179,98.358,98.268,142.6303]
[1770011514122,14.1294179,98.358,98.278,151.7843]
[1770011514321,14.1294179,98.358,98.291,142.5979]
[1770011514518,14.1294179,98.358,98.278,151.7843]
[1770011514722,14.1294179,98.358,98.297,142.5883]
[1770011514917,14.1294179,98.358,98.242,428.005]
[1770011514918,14.1294179,98.358,98.274,142.6223]
[1770011515122,14.1294179,98.358,98.289,142.6]
[1770011515527,32.14949555,98.38,98.289,142.6]
[1770011515920,14.14316366,98.375,98.289,9.1671]
[1770011516521,14.14386748,98.363,98.274,9.1685]
[1770011516819,14.14386748,98.338,98.245,142.6642]
[1770011517027,14.14386748,98.33,98.24,142.6719]
[1770011518019,14.14386748,98.33,98.216,142.7054]
[1770011518225,151.7063,98.329,98.232,9.1724]
[1770011518423,9.1634,98.329,98.229,142.6869]
[1770011518623,142.5324,98.337,98.226,9.173]
[1770011518624,14.13617815,98.316,98.226,9.173]
[1770011518928,14.13617815,98.316,98.236,142.6777]
[1770011519132,14.13617815,98.316,98.238,9.1719]
[1770011519422,142.5022,98.358,98.238,9.1719]
[1770011519423,142.5228,98.343,98.248,142.6597]
[1770011519623,23.29877815,98.339,98.249,142.6589]
[1770011519828,14.13617815,98.339,98.257,142.6473]
[1770011520028,14.13617815,98.339,98.258,142.6452]
[1770011520224,9.1611,98.355,98.264,142.6363]
[1770011520523,142.5344,98.335,98.239,142.6729]
[1770011520728,9.164,98.323,98.234,151.8525]
[1770011521025,14.13222577,98.322,98.204,142.7241]
[1770011521329,14.13222577,98.298,98.225,142.6924]
[1770011521526,30.57,98.303,98.211,142.7133]
[1770011521727,14.13222577,98.272,98.182,142.7561]
[1770011522024,32.14949555,98.28,98.205,142.7225]
[1770011522227,14.13222577,98.298,98.213,142.7101]
[1770011522622,14.13222577,98.298,98.215,9.174]
[1770011523018,14.13222577,98.298,98.171,142.7716]
[1770011523019,142.5589,98.318,98.217,142.7049]
[1770011523326,32.14949555,98.34,98.246,142.663]
[1770011523527,14.11743974,98.339,98.246,142.663]
[1770011523826,14.11743974,98.331,98.237,142.6751]
[1770011524023,14.11743974,98.331,98.238,142.6747]
[1770011524226,14.11743974,98.331,98.243,142.6672]
[1770011524525,14.11665548,98.317,98.192,142.741]
[1770011524729,44.68665548,98.307,98.211,142.7128]
[1770011525221,142.5599,98.318,98.195,142.7368]
[1770011525222,44.68665548,98.289,98.195,142.7368]
[1770011525423,14.11665548,98.286,98.195,142.7368]
[1770011525622,14.11665548,98.27,98.196,142.7352]
[1770011525824,14.11665548,98.27,98.177,142.7628]
[1770011526027,14.11665548,98.27,98.146,142.8083]
[1770011526028,14.11665548,98.254,98.158,142.79]
[1770011526222,14.13168922,98.279,98.211,142.7136]
[1770011526532,14.13168922,98.307,98.22,142.7008]
[1770011526834,405.94,98.336,98.21,142.715]
[1770011526835,14.13168922,98.335,98.235,142.6787]
[1770011527124,405.94,98.336,98.21,142.715]
[1770011527125,156.70378922,98.309,98.21,142.715]
[1770011527325,9.1656,98.306,98.221,151.873]
[1770011527532,14.13168922,98.309,98.23,142.686]
[1770011527733,14.13168922,98.309,98.233,151.8543]
[1770011527930,14.13168922,98.309,98.239,142.672]
[1770011528130,405.94,98.336,98.253,142.6528]
[1770011528826,142.5516,98.323,98.228,142.6881]
[1770011529026,142.538,98.333,98.208,142.7179]
[1770011529027,14.15453412,98.313,98.208,142.7179]
[1770011529229,9.1661,98.3,98.212,151.8869]
[1770011529423,14.15453412,98.31,98.202,142.7268]
[1770011529629,14.15453412,98.31,98.224,142.6949]
[1770011530032,14.15453412,98.31,98.224,9.1731]
[1770011530432,14.15453412,98.31,98.205,142.722]
[1770011530433,14.15453412,98.31,98.231,9.1725]
[1770011531330,14.15453412,98.31,98.233,9.1724]
[1770011531529,142.538,98.333,98.234,4.49576965]
[1770011531530,30.57,98.33,98.234,4.49576965]
[1770011531727,187.2786273,98.321,98.235,4.49576965]
[1770011531932,44.7232273,98.321,98.237,9.1719]
[1770011532135,14.1532273,98.321,98.238,4.49576965]
[1770011532435,30.57,98.319,98.239,4.49576965]
[1770011532737,14.27231,98.299,98.24,4.51043328]
[1770011532933,14.27231,98.299,98.241,4.51043328]
[1770011533136,14.27231,98.299,98.242,4.51043328]
[1770011533433,14.27231,98.299,98.243,13.68183328]
[1770011533632,14.27231,98.299,98.244,4.51043328]
[1770011533828,14.27231,98.325,98.248,142.6604]
[1770011534027,14.27231,98.353,98.263,142.6379]
[1770011534236,14.27231,98.353,98.275,142.6209]
[1770011534434,14.27231,98.353,98.293,9.1667]
[1770011534630,14.27231,98.353,98.294,4.51043328]
[1770011535333,14.27231,98.353,98.295,4.51043328]
[1770011535631,14.27231,98.353,98.267,142.6328]
[1770011535632,14.27231,98.353,98.296,4.51043328]
[1770011535834,14.27231,98.353,98.276,142.619]
[1770011535835,14.27231,98.353,98.297,4.51043328]
[1770011536137,14.26289559,98.379,98.307,142.5738]
[1770011536335,14.30332466,98.406,98.308,4.53971525]
[1770011536532,14.30332466,98.406,98.329,142.5426]
[1770011536733,14.30332466,98.396,98.33,4.53971525]
[1770011536928,14.30332466,98.396,98.331,4.53971525]
[1770011537128,14.30332466,98.396,98.305,142.5776]
[1770011537129,14.30332466,98.395,98.332,4.53971525]
[1770011537333,9.1579,98.389,98.333,4.53971525]
[1770011537542,9.1579,98.389,98.334,4.53971525]
[1770011537834,12.03346704,98.362,98.281,9.1679]
[1770011538238,12.03701108,98.359,98.251,142.6559]
[1770011538427,21.19771108,98.359,98.269,151.7984]
[1770011538629,142.5052,98.355,98.269,9.169]
[1770011538831,12.03701108,98.359,98.269,9.169]
[1770011539030,12.03701108,98.359,98.281,9.1678]
[1770011539231,12.03701108,98.379,98.288,142.6022]
[1770011539432,405.98,98.398,98.31,142.5701]
[1770011539638,405.98,98.398,98.294,142.5932]
[1770011539639,12.03701108,98.392,98.294,142.5932]
[1770011539827,12.03701108,98.389,98.299,142.5857]
[1770011540029,405.98,98.398,98.27,142.6276]
[1770011540030,12.03701108,98.369,98.27,142.6276]
[1770011540232,9.1613,98.352,98.272,9.1687]
[1770011540637,151.6709,98.352,98.258,9.17]
[1770011540841,9.1613,98.352,98.268,142.6313]
[1770011541242,9.1613,98.352,98.269,9.169]
[1770011542339,12.03701108,98.364,98.291,142.5978]
[1770011542535,12.03701108,98.364,98.297,142.5879]
[1770011543133,12.06330044,98.398,98.311,142.5678]
[1770011543433,32.14949555,98.4,98.283,142.6095]
[1770011543434,12.06330044,98.366,98.283,142.6095]
[1770011544044,12.06330044,98.393,98.295,142.5921]
[1770011544240,12.06330044,98.38,98.289,142.5998]
[1770011544443,12.06330044,98.38,98.307,9.1654]
[1770011544644,12.06330044,98.405,98.327,142.545]
[1770011544941,12.06330044,98.429,98.334,142.5342]
[1770011545140,154.48670044,98.412,98.319,142.5567]
[1770011545445,12.07198943,98.411,98.319,142.5567]
[1770011545640,12.07198943,98.398,98.309,142.5712]
[1770011545834,32.14949555,98.43,98.335,142.5331]
[1770011546137,12.07198943,98.424,98.348,9.1616]
[1770011546340,12.07198943,98.415,98.316,142.5613]
[1770011546539,12.07198943,98.388,98.29,142.599]
[1770011546737,142.4459,98.396,98.286,9.1673]
[1770011546738,12.07198943,98.374,98.286,9.1673]
[1770011546941,12.07198943,98.374,98.275,142.621]
[1770011547341,142.4603,98.386,98.275,142.621]
[1770011547342,12.03228598,98.372,98.287,9.1673]
[1770011547541,12.03228598,98.372,98.287,151.7705]
[1770011548042,12.03228598,98.398,98.312,142.5672]
[1770011548437,21.18958598,98.396,98.315,151.7277]
[1770011548642,12.03228598,98.38,98.292,142.5959]
[1770011548844,142.4538,98.391,98.283,142.6083]
[1770011548845,12.03228598,98.376,98.283,142.6083]
[1770011549043,12.03228598,98.372,98.289,151.7677]
[1770011549246,12.03228598,98.372,98.294,142.5927]
[1770011549446,12.03228598,98.372,98.289,142.6006]
[1770011549642,12.03228598,98.372,98.225,24.70433697]
[1770011549643,21.18604722,98.395,98.313,151.7302]
[1770011549848,12.02874722,98.395,98.324,142.5487]
[1770011550048,12.02874722,98.395,98.311,142.5688]
[1770011550249,12.02874722,98.392,98.312,9.1649]
[1770011550744,12.02874722,98.387,98.312,9.1649]
[1770011551045,30.57,98.386,98.299,9.1661]
[1770011551249,12.02882445,98.367,98.278,142.6164]
[1770011551446,12.02882445,98.349,98.265,142.6347]
[1770011551643,30.57,98.337,98.258,9.17]
[1770011551845,12.02882445,98.336,98.258,9.17]
[1770011552451,12.02882445,98.336,98.275,151.7893]
[1770011552743,12.02882445,98.35,98.275,9.1684]
[1770011553144,12.02882445,98.35,98.275,151.7889]
[1770011553343,12.02882445,98.35,98.286,9.1674]
[1770011553544,32.14949555,98.37,98.288,142.6023]
[1770011553848,12.03313494,98.383,98.319,9.1643]
[1770011554045,12.03313494,98.368,98.277,142.618]
[1770011554640,9.1613,98.352,98.277,9.1683]
[1770011554841,12.03313494,98.351,98.277,9.1683]
[1770011555649,9.1592,98.375,98.293,142.5949]
[1770011556146,12.03297931,98.368,98.283,142.6091]
[1770011556449,12.03297931,98.368,98.253,142.6527]
[1770011556450,12.03297931,98.368,98.292,142.5961]
[1770011556648,12.03297931,98.393,98.306,142.5757]
[1770011556844,12.03297931,98.419,98.34,142.5265]
[1770011557047,12.03297931,98.419,98.354,142.5054]
[1770011557245,12.03297931,98.419,98.365,9.16]
[1770011557443,12.03297931,98.419,98.336,142.5322]
[1770011557647,12.03297931,98.419,98.349,9.1615]
[1770011558248,12.03297931,98.419,98.36,9.1605]
[1770011558754,142.3783,98.443,98.352,142.5086]
[1770011558956,12.05165394,98.434,98.343,142.5215]
[1770011559451,12.06571308,98.432,98.346,9.1618]
[1770011560042,12.06571308,98.479,98.386,142.4593]
[1770011560241,12.06571308,98.466,98.389,142.4548]
[1770011560447,21.21651308,98.465,98.376,9.159]
[1770011560650,12.06571308,98.459,98.376,9.159]
[1770011560850,12.06571308,98.459,98.382,142.4654]
[1770011561053,12.06571308,98.459,98.376,142.4746]
[1770011561348,12.06189093,98.477,98.383,142.4638]
[1770011561549,12.06189093,98.474,98.398,142.4416]
[1770011561756,12.06189093,98.501,98.419,142.4124]
[1770011562048,12.06189093,98.501,98.388,142.4573]
[1770011562049,12.06189093,98.497,98.411,151.5794]
[1770011562351,142.2723,98.517,98.411,9.1558]
[1770011562352,8.58469787,98.49,98.411,9.1558]
[1770011562542,12.06189093,98.489,98.411,151.5796]
[1770011562742,12.06189093,98.489,98.425,9.1544]
[1770011562944,12.06189093,98.489,98.4,142.4389]
[1770011563146,12.06189093,98.488,98.402,142.4368]
[1770011563342,12.06189093,98.488,98.395,9.1573]
[1770011563548,142.3019,98.496,98.395,9.1573]
[1770011563549,20.64176177,98.47,98.395,9.1573]
[1770011563749,12.0570639,98.469,98.395,9.1573]
[1770011563949,12.0570639,98.449,98.363,142.4924]
[1770011564156,12.0570639,98.449,98.386,142.4593]
[1770011564451,12.0570639,98.449,98.387,142.4588]
[1770011564652,12.0570639,98.449,98.321,405.74]
[1770011564653,8.58469787,98.47,98.389,142.4556]
[1770011564946,12.0570639,98.477,98.413,142.4207]
[1770011565153,8.58469787,98.52,98.441,142.3803]
[1770011565352,12.05546442,98.534,98.463,142.3484]
[1770011565547,8.58469787,98.54,98.457,142.3575]
[1770011565548,12.05546442,98.559,98.464,142.3466]
[1770011565740,12.05546442,98.534,98.438,142.3837]
[1770011565945,8.58469787,98.53,98.449,142.3678]
[1770011566343,12.05546442,98.527,98.431,142.3938]
[1770011566643,12.05546442,98.527,98.399,142.4402]
[1770011566644,8.58469787,98.51,98.429,142.3974]
[1770011566843,8.58469787,98.51,98.433,142.391]
[1770011567043,12.05546442,98.524,98.452,142.3644]
[1770011567244,12.05546442,98.549,98.46,142.352]
[1770011567443,12.05546442,98.549,98.48,142.323]
[1770011567644,12.05546442,98.549,98.462,142.3493]
[1770011567853,12.05546442,98.549,98.47,142.3379]
[1770011568053,8.58469787,98.57,98.489,142.3102]
[1770011568253,12.03889296,98.574,98.501,9.1474]
[1770011568445,12.03889296,98.574,98.49,142.3098]
[1770011568851,12.03889296,98.599,98.517,142.2705]
[1770011569053,12.03889296,98.599,98.531,142.2504]
[1770011569249,142.1151,98.625,98.521,142.2646]
[1770011569250,12.03889296,98.625,98.538,142.2395]
[1770011569460,12.04029924,98.608,98.515,142.2737]
[1770011569756,12.04029924,98.606,98.515,142.2737]
[1770011569956,12.04029924,98.569,98.476,142.3294]
[1770011570157,12.04029924,98.569,98.49,142.3092]
[1770011570453,12.04029924,98.565,98.474,142.3329]
[1770011570652,142.2054,98.563,98.473,9.15]
[1770011571246,12.05611914,98.549,98.455,9.1516]
[1770011571446,8.58469787,98.55,98.48,142.3233]
[1770011571644,8.58469787,98.55,98.461,142.3507]
[1770011571845,12.05611914,98.547,98.455,142.3598]
[1770011572246,12.05611914,98.547,98.465,142.3448]
[1770011572450,12.05611914,98.547,98.465,151.4955]
[1770011572955,151.3446,98.564,98.445,142.3741]
[1770011572956,8.58469787,98.53,98.445,142.3741]
[1770011573250,8.58469787,98.53,98.447,9.1524]
[1770011573451,8.58469787,98.53,98.449,142.3688]
[1770011573651,151.3735,98.546,98.433,142.3923]
[1770011573652,12.05699277,98.509,98.433,142.3923]
[1770011573857,8.58469787,98.53,98.463,142.3484]
[1770011574159,12.05699277,98.534,98.463,142.3484]
[1770011574553,12.05699277,98.534,98.463,9.1509]
[1770011574953,12.05699277,98.534,98.433,142.3923]
[1770011574954,12.05699277,98.534,98.467,142.3424]
[1770011575160,12.05699277,98.534,98.457,142.3566]
[1770011575352,11.99966702,98.529,98.446,142.3721]
[1770011575650,11.99966702,98.529,98.439,9.1531]
[1770011575856,11.99966702,98.529,98.439,151.5366]
[1770011576460,11.99966702,98.529,98.46,151.5039]
[1770011577355,8.57402101,98.53,98.475,9.1498]
[1770011577559,413.91402101,98.55,98.475,151.4813]
[1770011578761,413.91402101,98.55,98.475,9.1498]
[1770011579160,413.91402101,98.55,98.459,9.1513]
[1770011579161,11.99479472,98.549,98.459,9.1513]
[1770011579462,11.9941643,98.529,98.456,142.3579]
[1770011579758,11.9941643,98.529,98.471,9.1501]
[1770011579962,11.9941643,98.529,98.449,142.3684]
[1770011580160,8.57402101,98.5,98.438,151.5379]
[1770011580362,11.9941643,98.517,98.451,142.3654]
[1770011580560,142.1776,98.582,98.468,142.3414]
[1770011580561,11.9941643,98.542,98.468,142.3414]
[1770011580759,11.9941643,98.542,98.482,151.4697]
[1770011580960,11.9941643,98.54,98.461,142.3512]
[1770011581457,12.00725144,98.529,98.441,142.3802]
[1770011581663,12.00725144,98.529,98.453,142.3624]
[1770011581863,12.00725144,98.52,98.427,142.4008]
[1770011582064,12.00725144,98.489,98.4,142.44]
[1770011582260,8.57402101,98.49,98.428,142.3994]
[1770011582462,8.57402101,98.5,98.428,142.3994]
[1770011582955,12.00725144,98.497,98.41,142.4253]
[1770011583160,12.00725144,98.497,98.427,142.4006]
[1770011583363,12.00725144,98.497,98.418,142.4131]
[1770011583364,12.00725144,98.497,98.42,142.4103]
[1770011583561,12.02036829,98.494,98.405,142.4323]
[1770011583757,8.57402101,98.48,98.394,142.4479]
[1770011583962,12.02036829,98.479,98.393,142.4495]
[1770011584363,12.02036829,98.479,98.174,44.21969043]
[1770011584364,12.02036829,98.447,98.365,9.16]
[1770011584656,12.02036829,98.447,98.358,142.4998]
[1770011584860,12.02036829,98.447,98.371,142.4808]
[1770011585063,142.3817,98.441,98.346,142.5173]
[1770011585368,8.57402101,98.41,98.33,9.1633]
[1770011585562,8.57402101,98.39,98.311,142.5679]
[1770011585864,12.01986685,98.401,98.321,142.5544]
[1770011586062,12.01986685,98.401,98.344,142.52]
[1770011586264,8.57402101,98.41,98.344,142.52]
[1770011586467,12.01986685,98.409,98.324,142.549]
[1770011586762,12.01986685,98.409,98.315,142.5621]
[1770011586763,12.01986685,98.409,98.338,9.1625]
[1770011587066,12.01986685,98.409,98.336,142.5314]
[1770011587761,20.59855558,98.39,98.306,142.5758]
[1770011587954,20.59855558,98.39,98.292,142.5959]
[1770011587955,8.57402101,98.37,98.292,142.5959]
[1770011588159,12.02453457,98.382,98.314,142.5641]
[1770011588866,12.02453457,98.382,98.296,142.5906]
[1770011589063,12.02453457,98.382,98.25,8.57402101]
[1770011589064,8.57402101,98.37,98.285,142.6056]
[1770011589261,8.57402101,98.37,98.296,142.59]
[1770011589463,12.02504084,98.369,98.282,142.6101]
[1770011589667,12.02504084,98.364,98.27,142.6272]
[1770011589866,12.02504084,98.364,98.275,151.7891]
[1770011590265,20.59906185,98.35,98.28,142.6133]
[1770011590465,20.59906185,98.35,98.272,9.1687]
[1770011590662,151.08652101,98.35,98.25,142.6566]
[1770011590867,8.57402101,98.33,98.24,142.6719]
[1770011591261,8.57402101,98.33,98.237,142.6757]
[1770011591262,12.02493455,98.322,98.237,142.6757]
[1770011591665,12.02493455,98.322,98.228,142.6884]
[1770011591859,12.02493455,98.322,98.24,142.6717]
[1770011592062,12.02493455,98.348,98.263,142.6372]
[1770011592368,12.02493455,98.348,98.275,151.7893]
[1770011592870,12.02493455,98.348,98.277,142.6176]
[1770011593070,12.02493455,98.348,98.267,142.6318]
[1770011593368,8.57402101,98.33,98.242,9.1715]
[1770011593567,8.57402101,98.31,98.227,142.6903]
[1770011593768,8.57402101,98.31,98.232,142.6828]
[1770011593966,8.57402101,98.31,98.232,151.8552]
[1770011594465,9.1627,98.338,98.227,142.6903]
[1770011594466,12.04879182,98.339,98.243,142.6676]
[1770011594668,9.1611,98.354,98.236,9.1721]
[1770011594669,8.57402101,98.32,98.236,9.1721]
[1770011595266,12.05641966,98.319,98.227,142.6903]
[1770011595567,8.57402101,98.3,98.22,9.1735]
[1770011595868,8.57402101,98.3,98.225,142.6933]
[1770011596063,12.05641966,98.31,98.221,142.699]
[1770011596265,20.63044067,98.31,98.236,142.6776]
[1770011596570,12.05641966,98.31,98.236,151.8497]
[1770011596972,12.05641966,98.31,98.236,9.1721]
[1770011597170,12.05641966,98.309,98.219,9.1737]
[1770011597869,12.05641966,98.309,98.219,151.8759]
[1770011598070,12.05641966,98.309,98.23,151.8578]
[1770011598265,12.05641966,98.309,98.23,9.1726]
[1770011598766,142.6316,98.268,98.169,142.7738]
[1770011598970,142.6316,98.268,98.158,142.7898]
[1770011598971,8.57402101,98.25,98.174,142.7675]
[1770011599270,8.57402101,98.25,98.174,9.1778]
[1770011599461,12.05628132,98.275,98.215,142.7075]
[1770011599668,12.06356655,98.303,98.219,142.7024]
[1770011599968,12.06356655,98.303,98.219,9.1736]
[1770011600171,12.06356655,98.303,98.203,142.7256]
[1770011600365,142.5099,98.352,98.028,44.21969043]
[1770011600366,8.57402101,98.34,98.248,142.6596]
[1770011600572,12.06356655,98.335,98.248,142.6596]
[1770011600772,12.06356655,98.314,98.219,142.7024]
[1770011600967,8.57402101,98.3,98.223,142.6957]
[1770011601364,12.04461769,98.298,98.209,9.1746]
[1770011601565,12.04461769,98.296,98.209,9.1746]
[1770011601765,12.04461769,98.296,98.214,142.709]
[1770011601966,12.04461769,98.296,98.228,151.8621]
[1770011602364,12.04461769,98.312,98.228,9.1728]
[1770011602675,12.04461769,98.312,98.232,151.8554]
[1770011602864,12.04461769,98.339,98.259,142.6438]
[1770011603069,12.04461769,98.339,98.25,9.1707]
[1770011603263,11.98816816,98.337,98.244,142.6654]
[1770011603471,11.98816816,98.327,98.234,142.6797]
[1770011604170,11.98816816,98.327,98.236,9.1721]
[1770011605074,11.98816816,98.327,98.251,142.6555]
[1770011605270,11.98816816,98.327,98.236,142.6775]
[1770011605271,11.98816816,98.327,98.252,142.6541]
[1770011605575,11.98816816,98.327,98.266,9.1693]
[1770011605976,8.57402101,98.35,98.266,151.8035]
[1770011606377,11.97800019,98.349,98.266,151.8035]
[1770011606773,11.97800019,98.349,98.28,9.1679]
[1770011607776,11.97800019,98.349,98.266,151.8034]
[1770011608074,11.97800019,98.349,98.279,142.6143]
[1770011608379,11.97657188,98.373,98.287,142.6023]
[1770011608972,11.97657188,98.373,98.3,9.1661]
[1770011609178,11.97657188,98.373,98.287,142.6023]
[1770011609382,11.97657188,98.373,98.304,142.5782]
[1770011609580,11.97657188,98.373,98.296,142.5901]
[1770011609776,11.97657188,98.373,98.302,142.5815]
[1770011610577,11.97190269,98.369,98.281,142.6125]
[1770011610979,11.97190269,98.369,98.288,142.6013]
[1770011611576,11.9810196,98.368,98.279,9.168]
[1770011611880,11.9810196,98.389,98.321,142.5536]
[1770011612177,11.9810196,98.414,98.337,142.5306]
[1770011612579,11.9810196,98.399,98.308,142.5727]
[1770011612778,11.9810196,98.389,98.297,142.5884]
[1770011613078,11.9810196,98.385,98.294,142.5932]
[1770011613379,11.97567158,98.367,98.282,142.6103]
[1770011613579,11.97567158,98.349,98.263,142.6384]
[1770011613776,11.97567158,98.347,98.269,9.1689]
[1770011614482,11.97567158,98.347,98.254,142.6507]
[1770011614674,11.97567158,98.345,98.262,142.6396]
[1770011615377,11.97567158,98.345,98.269,9.169]
[1770011615976,11.97567158,98.345,98.281,9.1679]
[1770011616174,11.97567158,98.345,98.244,142.6649]
[1770011616175,11.97469793,98.368,98.287,142.6037]
[1770011616378,11.97469793,98.368,98.277,142.6179]
[1770011616579,11.97469793,98.366,98.279,9.168]
[1770011616981,11.97469793,98.365,98.279,9.168]
[1770011617376,11.97516592,98.349,98.267,142.6322]
[1770011617582,11.97516592,98.349,98.264,9.1695]
[1770011618180,11.97510665,98.329,98.249,9.1708]
[1770011618581,21.13860665,98.329,98.249,9.1708]
[1770011618782,11.97510665,98.309,98.22,142.7001]
[1770011618983,11.97510665,98.309,98.221,142.6986]
[1770011619381,11.97900765,98.289,98.181,142.7577]
[1770011619585,11.97900765,98.269,98.181,142.7577]
[1770011619880,11.97900765,98.249,98.184,142.7528]
[1770011620183,11.97900765,98.249,98.164,142.7824]
[1770011620184,11.97900765,98.249,98.167,142.7777]
[1770011620580,11.97900765,98.249,98.172,9.178]
[1770011620787,11.97900765,98.249,98.172,151.9476]
[1770011621674,11.97900765,98.249,98.186,151.9272]
[1770011621875,11.97900765,98.249,98.186,9.1768]
[1770011622073,11.97900765,98.249,98.145,142.8087]
[1770011622074,11.96848003,98.229,98.132,142.8283]
[1770011622275,11.96848003,98.229,98.153,142.7984]
[1770011622474,11.96848003,98.229,98.153,151.9782]
[1770011622689,11.96848003,98.229,98.164,142.7819]
[1770011622883,8.57402101,98.25,98.18,142.7582]
[1770011623082,8.57402101,98.25,98.17,9.1782]
[1770011623279,11.96848003,98.249,98.163,142.7825]
[1770011623681,11.9373089,98.229,98.13,142.8309]
[1770011623884,8.57402101,98.14,98.024,64.8316444]
[1770011624082,428.1884,98.201,98.038,64.8316444]